fUST/lending_fUST_20260508
["ID","MTS","AMOUNT","RATE_DAILY","PERIOD"]
[421830374,1778193050000,-504.45,0.00014246,2]
[421830383,1778193050000,-901.81,0.00014246,2]
[421830387,1778193050000,-851.98,0.00014246,2]
[421830385,1778193050000,-672.38,0.00014246,2]
[421830292,1778193050000,-144843.0,0.000141,2]
[421830338,1778193050000,-500.0,0.00014236,2]
[421830351,1778193050000,-500.0,0.00014246,2]
[421830364,1778193050000,-868.82,0.00014246,2]
[421830347,1778193050000,-212.41,0.00014246,2]
[421830282,1778193050000,-857.10461354,0.00014087,14]
[421830349,1778193050000,-500.0,0.00014246,2]
[421830295,1778193050000,-2042.48879103,0.00014103,30]
[421830297,1778193050000,-1897.35535036,0.00014108,2]
[421830299,1778193050000,-2049.01989775,0.0001412,30]
[421830310,1778193050000,-160.0,0.000142,30]
[421830312,1778193050000,-325.7485516,0.00014201,2]
[421830300,1778193050000,-4514.47329813,0.00014126,14]
[421830303,1778193050000,-3624.80581592,0.00014138,30]
[421830304,1778193050000,-171.41662385,0.00014159,2]
[421830308,1778193050000,-2049.01989775,0.00014196,30]
[421830315,1778193050000,-325.7485517,0.00014201,2]
[421830334,1778193050000,-500.0,0.00014236,2]
[421830321,1778193050000,-183.78,0.00014218,2]
[421830317,1778193050000,-4514.47329813,0.00014215,30]
[421830319,1778193050000,-183.78,0.00014216,2]
[421830323,1778193050000,-183.77,0.0001422,2]
[421830325,1778193050000,-183.78,0.0001422,2]
[421830332,1778193050000,-500.0,0.00014236,2]
[421830329,1778193050000,-587.38525557,0.00014234,14]
[421830306,1778193050000,-2042.48879103,0.00014187,30]
[421830327,1778193050000,-3624.80581592,0.00014224,30]
[421830336,1778193050000,-500.0,0.00014236,2]
[421830465,1778193051000,-294.37464747,0.00014349,30]
[421830463,1778193051000,-2049.01989775,0.00014348,30]
[421830449,1778193051000,-954.24,0.00014246,2]
[421830451,1778193051000,-2843.61,0.00014246,2]
[421830457,1778193051000,-3624.80581592,0.00014309,30]
[421830461,1778193051000,-200.0,0.00014339,2]
[421830459,1778193051000,-2000.0,0.00014329,7]
[421830447,1778193051000,-500.0,0.00014246,2]
[421830467,1778193051000,-2042.48879103,0.00014355,30]
[421830453,1778193051000,-2049.01989775,0.00014272,30]
[421830469,1778193051000,-1897.35535036,0.0001436,2]
[421830496,1778193051000,-500.0,0.00014372,2]
[421830471,1778193051000,-500.0,0.00014371,2]
[421830473,1778193051000,-500.0,0.00014372,2]
[421830479,1778193051000,-503.13535094,0.00014372,2]
[421830474,1778193051000,-500.0,0.00014372,2]
[421830481,1778193051000,-272.48913697,0.00014372,2]
[421830483,1778193051000,-500.0,0.00014372,2]
[421830486,1778193051000,-500.0,0.00014372,2]
[421830490,1778193051000,-500.0,0.00014372,2]
[421830492,1778193051000,-500.22177133,0.00014372,2]
[421830488,1778193051000,-500.0,0.00014372,2]
[421830455,1778193051000,-4514.47329813,0.00014303,30]
[421830477,1778193051000,-532.78261203,0.00014372,2]
[421830444,1778193051000,-979.59,0.00014246,2]
[421830395,1778193051000,-626.1,0.00014246,2]
[421830438,1778193051000,-901.78,0.00014246,2]
[421830494,1778193051000,-500.0,0.00014372,2]
[421830391,1778193051000,-500.0,0.00014246,2]
[421830397,1778193051000,-676.42,0.00014246,2]
[421830393,1778193051000,-1601.9,0.00014246,2]
[421830399,1778193051000,-500.0,0.00014246,2]
[421830402,1778193051000,-639.85,0.00014246,2]
[421830404,1778193051000,-500.0,0.00014246,2]
[421830408,1778193051000,-500.0,0.00014246,2]
[421830413,1778193051000,-11103.3,0.00014246,2]
[421830406,1778193051000,-2070.95,0.00014246,2]
[421830414,1778193051000,-1284.31,0.00014246,2]
[421830410,1778193051000,-1307.16,0.00014246,2]
[421830417,1778193051000,-2132.63,0.00014246,2]
[421830419,1778193051000,-1180.57,0.00014246,2]
[421830423,1778193051000,-508.14,0.00014246,2]
[421830425,1778193051000,-659.82,0.00014246,2]
[421830429,1778193051000,-1159.22,0.00014246,2]
[421830427,1778193051000,-551.35,0.00014246,2]
[421830421,1778193051000,-518.88,0.00014246,2]
[421830440,1778193051000,-634.73,0.00014246,2]
[421830431,1778193051000,-500.0,0.00014246,2]
[421830442,1778193051000,-1594.6,0.00014246,2]
[421830434,1778193051000,-626.53,0.00014246,2]
[421830436,1778193051000,-500.0,0.00014246,2]
[421830498,1778193051000,-500.07616365,0.00014372,2]
[421830603,1778193051000,-500.0,0.0001452,2]
[421830502,1778193051000,-500.0,0.00014372,2]
[421830572,1778193051000,-850.0,0.00014501,2]
[421830558,1778193051000,-285.0,0.00014493,2]
[421830576,1778193051000,-850.0,0.00014501,2]
[421830564,1778193051000,-850.0,0.00014501,2]
[421830570,1778193051000,-850.0,0.00014501,2]
[421830560,1778193051000,-2049.01989775,0.00014499,30]
[421830574,1778193051000,-850.0,0.00014501,2]
[421830562,1778193051000,-850.0,0.00014501,2]
[421830578,1778193051000,-850.0,0.00014501,2]
[421830582,1778193051000,-1544.2926,0.0001452,2]
[421830591,1778193051000,-500.0,0.0001452,2]
[421830590,1778193051000,-500.0,0.0001452,2]
[421830580,1778193051000,-711.0,0.00014501,2]
[421830586,1778193051000,-493.51,0.0001452,2]
[421830594,1778193051000,-879.66,0.0001452,2]
[421830588,1778193051000,-500.0,0.0001452,2]
[421830595,1778193051000,-500.0,0.0001452,2]
[421830597,1778193051000,-500.0,0.0001452,2]
[421830599,1778193051000,-500.0,0.0001452,2]
[421830601,1778193051000,-868.82,0.0001452,2]
[421830605,1778193051000,-500.0,0.0001452,2]
[421830607,1778193051000,-871.28,0.0001452,2]
[421830500,1778193051000,-500.22105745,0.00014372,2]
[421830568,1778193051000,-850.0,0.00014501,2]
[421830566,1778193051000,-850.0,0.00014501,2]
[421830584,1778193051000,-500.0,0.0001452,2]
[421830554,1778193051000,-1250.0,0.00014493,2]
[421830556,1778193051000,-908.0,0.00014493,2]
[421830506,1778193051000,-235.50798892,0.00014372,2]
[421830508,1778193051000,-160.39948866,0.00014372,2]
[421830510,1778193051000,-500.0,0.00014372,2]
[421830512,1778193051000,-500.0,0.00014372,2]
[421830514,1778193051000,-220.90292529,0.00014372,2]
[421830527,1778193051000,-169.84179882,0.00014422,2]
[421830519,1778193051000,-500.0,0.00014406,2]
[421830529,1778193051000,-2049.01989775,0.00014423,30]
[421830525,1778193051000,-500.0,0.00014422,2]
[421830523,1778193051000,-151.0,0.00014421,2]
[421830517,1778193051000,-500.0,0.00014372,2]
[421830504,1778193051000,-500.0,0.00014372,2]
[421830552,1778193051000,-1250.0,0.00014493,2]
[421830521,1778193051000,-1897.35535036,0.0001442,2]
[421830550,1778193051000,-1250.0,0.00014493,2]
[421830544,1778193051000,-1250.0,0.00014493,2]
[421830546,1778193051000,-1250.0,0.00014493,2]
[421830537,1778193051000,-1250.0,0.00014493,2]
[421830548,1778193051000,-1250.0,0.00014493,2]
[421830539,1778193051000,-1250.0,0.00014493,2]
[421830542,1778193051000,-1250.0,0.00014493,2]
[421830535,1778193051000,-2042.48879103,0.0001444,30]
[421830533,1778193051000,-158.10327877,0.00014433,14]
[421830531,1778193051000,-189.36638996,0.00014432,30]
[421830693,1778193052000,-2042.48879103,0.00014608,30]
[421830697,1778193052000,-1000.0,0.00014621,2]
[421830680,1778193052000,-2042.48879103,0.00014524,30]
[421830686,1778193052000,-587.38525557,0.00014554,30]
[421830691,1778193052000,-160.0,0.000146,30]
[421830662,1778193052000,-626.53,0.0001452,2]
[421830695,1778193052000,-294.37464747,0.0001461,60]
[421830688,1778193052000,-313.20811659,0.00014567,30]
[421830678,1778193052000,-2843.61,0.0001452,2]
[421830676,1778193052000,-954.24,0.0001452,2]
[421830682,1778193052000,-14983.85920112,0.00014545,2]
[421830690,1778193052000,-2049.01989775,0.00014575,30]
[421830674,1778193052000,-500.0,0.0001452,2]
[421830711,1778193052000,-521.75252551,0.00014621,2]
[421830699,1778193052000,-1000.0,0.00014621,2]
[421830701,1778193052000,-1000.0,0.00014621,2]
[421830705,1778193052000,-1000.0,0.00014621,2]
[421830713,1778193052000,-1000.0,0.00014621,2]
[421830703,1778193052000,-1000.0,0.00014621,2]
[421830707,1778193052000,-1000.0,0.00014621,2]
[421830717,1778193052000,-2049.01989775,0.0001465,60]
[421830719,1778193052000,-2042.48879103,0.00014692,30]
[421830720,1778193052000,-158.57280955,0.00014702,2]
[421830709,1778193052000,-1000.0,0.00014621,2]
[421830715,1778193052000,-2000.0,0.00014644,7]
[421830723,1778193052000,-2049.01989775,0.00014726,60]
[421830672,1778193052000,-979.59,0.0001452,2]
[421830684,1778193052000,-354.27898159,0.00014554,14]
[421830658,1778193052000,-1159.22,0.0001452,2]
[421830614,1778193052000,-500.0,0.0001452,2]
[421830660,1778193052000,-500.0,0.0001452,2]
[421830609,1778193052000,-500.0,0.0001452,2]
[421830613,1778193052000,-500.0,0.0001452,2]
[421830618,1778193052000,-672.38,0.0001452,2]
[421830620,1778193052000,-851.98,0.0001452,2]
[421830616,1778193052000,-901.81,0.0001452,2]
[421830724,1778193052000,-200.0,0.0001477,2]
[421830626,1778193052000,-1601.9,0.0001452,2]
[421830611,1778193052000,-504.45,0.0001452,2]
[421830624,1778193052000,-500.0,0.0001452,2]
[421830622,1778193052000,-557.41,0.0001452,2]
[421830627,1778193052000,-626.1,0.0001452,2]
[421830641,1778193052000,-1307.16,0.0001452,2]
[421830629,1778193052000,-676.42,0.0001452,2]
[421830635,1778193052000,-500.0,0.0001452,2]
[421830633,1778193052000,-639.85,0.0001452,2]
[421830639,1778193052000,-500.0,0.0001452,2]
[421830637,1778193052000,-2070.95,0.0001452,2]
[421830631,1778193052000,-500.0,0.0001452,2]
[421830647,1778193052000,-2132.63,0.0001452,2]
[421830643,1778193052000,-11103.3,0.0001452,2]
[421830645,1778193052000,-1284.31,0.0001452,2]
[421830649,1778193052000,-1180.57,0.0001452,2]
[421830651,1778193052000,-518.88,0.0001452,2]
[421830666,1778193052000,-901.78,0.0001452,2]
[421830664,1778193052000,-500.0,0.0001452,2]
[421830668,1778193052000,-634.73,0.0001452,2]
[421830670,1778193052000,-1594.6,0.0001452,2]
[421830653,1778193052000,-508.14,0.0001452,2]
[421830656,1778193052000,-551.35,0.0001452,2]
[421830655,1778193052000,-659.82,0.0001452,2]
[421830726,1778193052000,-156.0,0.0001477,2]
[421830769,1778193052000,-871.28,0.00014794,2]
[421830730,1778193052000,-218.56425865,0.0001478,30]
[421830803,1778193052000,-500.0,0.00014794,2]
[421830801,1778193052000,-2070.95,0.00014794,2]
[421830805,1778193052000,-1307.16,0.00014794,2]
[421830807,1778193052000,-11103.3,0.00014794,2]
[421830810,1778193052000,-1284.31,0.00014794,2]
[421830812,1778193052000,-2132.63,0.00014794,2]
[421830732,1778193052000,-1000.0,0.00014784,2]
[421830814,1778193052000,-1180.57,0.00014794,2]
[421830822,1778193052000,-551.35,0.00014794,2]
[421830816,1778193052000,-518.88,0.00014794,2]
[421830820,1778193052000,-659.82,0.00014794,2]
[421830828,1778193052000,-626.53,0.00014794,2]
[421830826,1778193052000,-500.0,0.00014794,2]
[421830799,1778193052000,-500.0,0.00014794,2]
[421830829,1778193052000,-500.0,0.00014794,2]
[421830838,1778193052000,-979.59,0.00014794,2]
[421830834,1778193052000,-634.73,0.00014794,2]
[421830849,1778193052000,-222.38218596,0.00014833,29]
[421830840,1778193052000,-500.0,0.00014794,2]
[421830836,1778193052000,-1594.6,0.00014794,2]
[421830847,1778193052000,-2049.01989775,0.00014802,60]
[421830843,1778193052000,-2843.61,0.00014794,2]
[421830845,1778193052000,-349199.92247178,0.000148,2]
[421830832,1778193052000,-901.78,0.00014794,2]
[421830842,1778193052000,-954.24,0.00014794,2]
[421830851,1778193052000,-2042.48879103,0.0001486,30]
[421830853,1778193052000,-294.37464747,0.00014871,60]
[421830855,1778193052000,-587.38525557,0.00014873,30]
[421830824,1778193052000,-1159.22,0.00014794,2]
[421830797,1778193052000,-639.85,0.00014794,2]
[421830818,1778193052000,-508.14,0.00014794,2]
[421830795,1778193052000,-258.61016109,0.00014794,2]
[421830734,1778193052000,-835.86172628,0.00014784,2]
[421830736,1778193052000,-1000.0,0.00014784,2]
[421830728,1778193052000,-2042.48879103,0.00014776,30]
[421830738,1778193052000,-1000.0,0.00014784,2]
[421830746,1778193052000,-500.0,0.00014794,2]
[421830793,1778193052000,-676.42,0.00014794,2]
[421830744,1778193052000,-1544.2926,0.00014794,2]
[421830742,1778193052000,-1000.0,0.00014784,2]
[421830740,1778193052000,-250.0,0.00014784,2]
[421830751,1778193052000,-500.0,0.00014794,2]
[421830753,1778193052000,-500.0,0.00014794,2]
[421830765,1778193052000,-500.0,0.00014794,2]
[421830763,1778193052000,-868.82,0.00014794,2]
[421830771,1778193052000,-500.0,0.00014794,2]
[421830748,1778193052000,-500.0,0.00014794,2]
[421830759,1778193052000,-500.0,0.00014794,2]
[421830755,1778193052000,-879.66,0.00014794,2]
[421830783,1778193052000,-851.98,0.00014794,2]
[421830785,1778193052000,-557.41,0.00014794,2]
[421830791,1778193052000,-626.1,0.00014794,2]
[421830780,1778193052000,-672.38,0.00014794,2]
[421830789,1778193052000,-1601.9,0.00014794,2]
[421830787,1778193052000,-500.0,0.00014794,2]
[421830777,1778193052000,-500.0,0.00014794,2]
[421830775,1778193052000,-500.0,0.00014794,2]
[421830773,1778193052000,-504.45,0.00014794,2]
[421830757,1778193052000,-500.0,0.00014794,2]
[421830761,1778193052000,-500.0,0.00014794,2]
[421830767,1778193052000,-500.0,0.00014794,2]
[421830779,1778193052000,-901.81,0.00014794,2]
[421830878,1778193053000,-1000.0,0.00014919,2]
[421830894,1778193053000,-1000.0,0.0001492,2]
[421830885,1778193053000,-1000.0,0.0001492,2]
[421830884,1778193053000,-250.0,0.0001492,2]
[421830882,1778193053000,-1000.0,0.0001492,2]
[421830876,1778193053000,-172.07461309,0.000149,2]
[421830874,1778193053000,-172.07461309,0.000149,2]
[421830879,1778193053000,-1000.0,0.0001492,2]
[421830859,1778193053000,-1411.0,0.00014881,2]
[421830872,1778193053000,-172.07461311,0.000149,2]
[421830865,1778193053000,-442.0,0.00014881,2]
[421830867,1778193053000,-1521.3,0.000149,2]
[421830863,1778193053000,-185.0,0.00014881,2]
[421830861,1778193053000,-590.451,0.00014881,2]
[421830857,1778193053000,-2049.01989775,0.00014878,60]
[421830896,1778193053000,-220.18242058,0.0001492,2]
[421830870,1778193053000,-7185.17873303,0.000149,2]
[421830890,1778193053000,-1000.0,0.0001492,2]
[421830926,1778193053000,-1277.0,0.00015,2]
[421830888,1778193053000,-1000.0,0.0001492,2]
[421830928,1778193053000,-704864.28643859,0.00015,2]
[421830924,1778193053000,-500.0,0.00014973,2]
[421830967,1778193053000,-1993.92787555,0.00015,2]
[421830918,1778193053000,-500.0,0.00014973,2]
[421830916,1778193053000,-1000.0,0.0001497,2]
[421830914,1778193053000,-2000.0,0.00014959,7]
[421830920,1778193053000,-500.0,0.00014973,2]
[421830922,1778193053000,-500.0,0.00014973,2]
[421830910,1778193053000,-2049.01989775,0.00014953,60]
[421830912,1778193053000,-1000.0,0.00014954,2]
[421830900,1778193053000,-1000.0,0.0001492,2]
[421830898,1778193053000,-1000.0,0.0001492,2]
[421830892,1778193053000,-857.89848931,0.0001492,2]
[421830902,1778193053000,-1000.0,0.0001492,2]
[421830904,1778193053000,-1000.0,0.0001492,2]
[421830908,1778193053000,-2042.48879103,0.00014944,60]
[421830906,1778193053000,-1000.0,0.0001492,2]
[421832970,1778194231000,-908.05981778,0.00010857,2]
[421832964,1778194231000,-396.05389605,0.00010688,2]
[421832966,1778194231000,-1001.0,0.00010855,2]
[421832968,1778194231000,-300.0,0.00010856,2]
[421832961,1778194231000,-4516.22397721,9.819e-05,2]
[421832959,1778194231000,-332.72338186,9.819e-05,2]
[421832963,1778194231000,-160.566907,9.918e-05,2]
[421833010,1778194238000,-12437.23700757,0.00010857,2]
[421833640,1778194243000,-1420.0,0.00010857,2]
[421833663,1778194243000,-7963.80187317,0.00010857,2]
[421834044,1778194246000,-500.0,0.00010958,2]
[421834039,1778194246000,-500.0,0.00010958,2]
[421834040,1778194246000,-500.0,0.00010958,2]
[421834037,1778194246000,-500.0,0.00010958,2]
[421834047,1778194246000,-500.0,0.00010958,2]
[421834034,1778194246000,-500.0,0.00010958,2]
[421834032,1778194246000,-1385.2395,0.00010958,2]
[421834029,1778194246000,-500.0,0.00010958,2]
[421834030,1778194246000,-500.0,0.00010958,2]
[421834026,1778194246000,-622.56,0.00010958,2]
[421834018,1778194246000,-500.0,0.00010958,2]
[421834024,1778194246000,-500.0,0.00010958,2]
[421834016,1778194246000,-500.0,0.00010958,2]
[421834017,1778194246000,-500.0,0.00010958,2]
[421834013,1778194246000,-500.0,0.00010958,2]
[421834014,1778194246000,-500.0,0.00010958,2]
[421834015,1778194246000,-500.0,0.00010958,2]
[421834011,1778194246000,-500.0,0.00010958,2]
[421834012,1778194246000,-500.0,0.00010958,2]
[421834010,1778194246000,-500.0,0.00010958,2]
[421834008,1778194246000,-500.0,0.00010958,2]
[421834007,1778194246000,-26688.11814613,0.00010857,2]
[421834009,1778194246000,-500.0,0.00010958,2]
[421834043,1778194246000,-600.71,0.00010958,2]
[421834051,1778194246000,-776.61,0.00010958,2]
[421834048,1778194246000,-500.0,0.00010958,2]
[421834057,1778194246000,-500.0,0.00010958,2]
[421834054,1778194246000,-500.0,0.00010958,2]
[421834116,1778194246000,-2261.96,0.00010958,2]
[421834112,1778194246000,-500.0,0.00010958,2]
[421834110,1778194246000,-1386.65,0.00010958,2]
[421834114,1778194246000,-1066.35,0.00010958,2]
[421834106,1778194246000,-500.0,0.00010958,2]
[421834108,1778194246000,-500.0,0.00010958,2]
[421834104,1778194246000,-500.0,0.00010958,2]
[421834095,1778194246000,-500.0,0.00010958,2]
[421834092,1778194246000,-500.0,0.00010958,2]
[421834098,1778194246000,-500.0,0.00010958,2]
[421834102,1778194246000,-500.0,0.00010958,2]
[421834083,1778194246000,-500.0,0.00010958,2]
[421834118,1778194246000,-500.0,0.00010958,2]
[421834085,1778194246000,-500.0,0.00010958,2]
[421834080,1778194246000,-736.37,0.00010958,2]
[421834074,1778194246000,-500.0,0.00010958,2]
[421834077,1778194246000,-500.0,0.00010958,2]
[421834068,1778194246000,-500.0,0.00010958,2]
[421834071,1778194246000,-500.0,0.00010958,2]
[421834063,1778194246000,-799.74,0.00010958,2]
[421834088,1778194246000,-597.97,0.00010958,2]
[421834065,1778194246000,-500.0,0.00010958,2]
[421834052,1778194246000,-500.0,0.00010958,2]
[421834061,1778194246000,-500.0,0.00010958,2]
[421834059,1778194246000,-4163.74,0.00010958,2]
[421834122,1778194247000,-28.42032239,0.00010958,2]
[421834120,1778194247000,-715.89,0.00010958,2]
[421835454,1778195206000,414611.49,0.00019178,120]
[421835488,1778195432000,-286.0,9.238e-05,2]
[421835492,1778195432000,-304.0,9.425e-05,2]
[421835490,1778195432000,-433.76,9.425e-05,2]
[421835557,1778195438000,-500.0,0.00010958,2]
[421835560,1778195438000,-500.0,0.00010958,2]
[421835570,1778195438000,-500.0,0.00010958,2]
[421835561,1778195438000,-500.0,0.00010958,2]
[421835563,1778195438000,-500.0,0.00010958,2]
[421835558,1778195438000,-573.87060302,0.00010958,2]
[421835565,1778195438000,-500.0,0.00010958,2]
[421835559,1778195438000,-500.0,0.00010958,2]
[421835569,1778195438000,-500.0,0.00010958,2]
[421835562,1778195438000,-500.0,0.00010958,2]
[421835564,1778195438000,-500.0,0.00010958,2]
[421835566,1778195438000,-500.0,0.00010958,2]
[421835567,1778195438000,-500.0,0.00010958,2]
[421835568,1778195438000,-500.0,0.00010958,2]
[421835554,1778195438000,-371.59358025,0.00010958,2]
[421835552,1778195438000,-500.0,0.00010958,2]
[421835553,1778195438000,-500.0,0.00010958,2]
[421835571,1778195438000,-500.0,0.00010958,2]
[421835540,1778195438000,-334.83469077,9.425e-05,2]
[421835543,1778195438000,-2189.04740841,0.00010755,2]
[421835541,1778195438000,-403.69664998,9.852e-05,2]
[421835542,1778195438000,-300.0,0.00010754,2]
[421835544,1778195438000,-5000.0,0.00010755,2]
[421835555,1778195438000,-500.0,0.00010958,2]
[421835545,1778195438000,-13310.95259159,0.00010755,2]
[421835551,1778195438000,-500.0,0.00010958,2]
[421835547,1778195438000,-22361.0981499,0.00010757,2]
[421835546,1778195438000,-38155.78109705,0.00010757,2]
[421835556,1778195438000,-500.0,0.00010958,2]
[421835549,1778195438000,-620.54312026,0.00010958,2]
[421835550,1778195438000,-500.0,0.00010958,2]
[421835548,1778195438000,-1802.284,0.00010958,2]
[421835572,1778195438000,-500.0,0.00010958,2]
[421835595,1778195438000,-500.0,0.00010958,2]
[421835576,1778195438000,-584.55,0.00010958,2]
[421835592,1778195438000,-500.0,0.00010958,2]
[421835593,1778195438000,-500.0,0.00010958,2]
[421835594,1778195438000,-500.0,0.00010958,2]
[421835596,1778195438000,-615.34,0.00010958,2]
[421835597,1778195438000,-500.0,0.00010958,2]
[421835599,1778195438000,-500.0,0.00010958,2]
[421835591,1778195438000,-500.0,0.00010958,2]
[421835598,1778195438000,-500.0,0.00010958,2]
[421835604,1778195438000,-500.0,0.00010958,2]
[421835602,1778195438000,-500.0,0.00010958,2]
[421835605,1778195438000,-500.0,0.00010958,2]
[421835606,1778195438000,-500.0,0.00010958,2]
[421835582,1778195438000,-500.0,0.00010958,2]
[421835603,1778195438000,-500.0,0.00010958,2]
[421835600,1778195438000,-500.0,0.00010958,2]
[421835590,1778195438000,-536.85,0.00010958,2]
[421835601,1778195438000,-500.0,0.00010958,2]
[421835588,1778195438000,-500.0,0.00010958,2]
[421835578,1778195438000,-500.0,0.00010958,2]
[421835589,1778195438000,-622.5,0.00010958,2]
[421835583,1778195438000,-500.0,0.00010958,2]
[421835579,1778195438000,-500.0,0.00010958,2]
[421835577,1778195438000,-500.0,0.00010958,2]
[421835575,1778195438000,-500.0,0.00010958,2]
[421835573,1778195438000,-500.0,0.00010958,2]
[421835574,1778195438000,-500.0,0.00010958,2]
[421835581,1778195438000,-500.0,0.00010958,2]
[421835585,1778195438000,-500.0,0.00010958,2]
[421835584,1778195438000,-500.0,0.00010958,2]
[421835586,1778195438000,-500.0,0.00010958,2]
[421835587,1778195438000,-500.0,0.00010958,2]
[421835580,1778195438000,-500.0,0.00010958,2]
[421835650,1778195439000,-570.64,0.00010958,2]
[421835649,1778195439000,-500.0,0.00010958,2]
[421835648,1778195439000,-500.0,0.00010958,2]
[421835646,1778195439000,-500.0,0.00010958,2]
[421835640,1778195439000,-500.0,0.00010958,2]
[421835637,1778195439000,-500.0,0.00010958,2]
[421835639,1778195439000,-500.0,0.00010958,2]
[421835638,1778195439000,-500.0,0.00010958,2]
[421835644,1778195439000,-500.0,0.00010958,2]
[421835641,1778195439000,-500.0,0.00010958,2]
[421835642,1778195439000,-500.0,0.00010958,2]
[421835654,1778195439000,-500.0,0.00010958,2]
[421835647,1778195439000,-500.0,0.00010958,2]
[421835651,1778195439000,-500.0,0.00010958,2]
[421835656,1778195439000,-467.87004519,0.00010958,2]
[421835655,1778195439000,-510.9,0.00010958,2]
[421835657,1778195439000,-500.0,0.00010958,2]
[421835658,1778195439000,-500.0,0.00010958,2]
[421835660,1778195439000,-500.0,0.00010958,2]
[421835670,1778195439000,-500.0,0.00010958,2]
[421835671,1778195439000,-500.0,0.00010958,2]
[421835662,1778195439000,-574.1,0.00010958,2]
[421835672,1778195439000,-500.0,0.00010958,2]
[421835659,1778195439000,-500.0,0.00010958,2]
[421835636,1778195439000,-500.0,0.00010958,2]
[421835663,1778195439000,-500.0,0.00010958,2]
[421835653,1778195439000,-500.0,0.00010958,2]
[421835635,1778195439000,-500.0,0.00010958,2]
[421835621,1778195439000,-509.09,0.00010958,2]
[421835643,1778195439000,-500.0,0.00010958,2]
[421835661,1778195439000,-500.0,0.00010958,2]
[421835607,1778195439000,-500.0,0.00010958,2]
[421835609,1778195439000,-500.0,0.00010958,2]
[421835608,1778195439000,-500.0,0.00010958,2]
[421835611,1778195439000,-500.0,0.00010958,2]
[421835610,1778195439000,-500.0,0.00010958,2]
[421835618,1778195439000,-500.0,0.00010958,2]
[421835619,1778195439000,-500.0,0.00010958,2]
[421835620,1778195439000,-500.0,0.00010958,2]
[421835612,1778195439000,-500.0,0.00010958,2]
[421835614,1778195439000,-500.0,0.00010958,2]
[421835616,1778195439000,-500.0,0.00010958,2]
[421835613,1778195439000,-584.08478032,0.00010958,2]
[421835645,1778195439000,-500.0,0.00010958,2]
[421835615,1778195439000,-500.0,0.00010958,2]
[421835624,1778195439000,-500.0,0.00010958,2]
[421835625,1778195439000,-500.0,0.00010958,2]
[421835627,1778195439000,-500.0,0.00010958,2]
[421835626,1778195439000,-500.0,0.00010958,2]
[421835623,1778195439000,-500.0,0.00010958,2]
[421835622,1778195439000,-500.0,0.00010958,2]
[421835629,1778195439000,-500.0,0.00010958,2]
[421835630,1778195439000,-301.43126335,0.00010958,2]
[421835628,1778195439000,-500.0,0.00010958,2]
[421835631,1778195439000,-500.0,0.00010958,2]
[421835632,1778195439000,-500.0,0.00010958,2]
[421835634,1778195439000,-480.38913382,0.00010958,2]
[421835633,1778195439000,-500.0,0.00010958,2]
[421835617,1778195439000,-500.0,0.00010958,2]
[421835664,1778195439000,-500.0,0.00010958,2]
[421835652,1778195439000,-500.0,0.00010958,2]
[421835665,1778195439000,-500.0,0.00010958,2]
[421835704,1778195439000,-500.0,0.00010958,2]